[Event "Late-Titled-Tuesday-Blitz-May-28-2024"]
[Site "Chess.com"]
[Date "2024.05.28"]
[Round "3"]
[White "RaugintaBulba"]
[Black "ValeriyGrinev"]
[Result "0-1"]
[WhiteElo "2432"]
[BlackElo "2593"]
[TimeControl "180+1"]
[EndTime "14:29:16 PDT"]
[Termination "ValeriyGrinev won by checkmate"]

1. d4 {[%clk 0:03:00.9]} 1... d5 {[%clk 0:02:59.4]} 2. c4 {[%clk 0:03:01.4]}
2... dxc4 {[%clk 0:02:59.9]} 3. e3 {[%clk 0:03:00.9]} 3... Nf6 {[%clk 0:03:00]}
4. Bxc4 {[%clk 0:03:01.3]} 4... e6 {[%clk 0:02:59.9]} 5. Nf3 {[%clk 0:03:01.6]}
5... a6 {[%clk 0:03:00.1]} 6. O-O {[%clk 0:02:59]} 6... b5 {[%clk 0:03:00.3]} 7.
Be2 {[%clk 0:02:57.2]} 7... Bb7 {[%clk 0:03:00.5]} 8. b3 {[%clk 0:02:56.9]} 8...
Nbd7 {[%clk 0:03:00.2]} 9. Bb2 {[%clk 0:02:57.2]} 9... c5 {[%clk 0:02:59.7]} 10.
Nbd2 {[%clk 0:02:55.1]} 10... Be7 {[%clk 0:02:59.1]} 11. Rc1 {[%clk 0:02:46.8]}
11... Rc8 {[%clk 0:02:58.5]} 12. dxc5 {[%clk 0:02:43.4]} 12... Bxc5 {[%clk
0:02:57.9]} 13. Ne5 {[%clk 0:02:38.9]} 13... O-O {[%clk 0:02:51.6]} 14. Ndf3
{[%clk 0:02:35.9]} 14... Qe7 {[%clk 0:02:45.1]} 15. Nxd7 {[%clk 0:02:34.7]}
15... Nxd7 {[%clk 0:02:46]} 16. Bd3 {[%clk 0:01:49.1]} 16... Rfd8 {[%clk
0:02:42.4]} 17. Nd4 {[%clk 0:01:48.2]} 17... Ne5 {[%clk 0:02:39.8]} 18. Bxh7+
{[%clk 0:01:48]} 18... Kxh7 {[%clk 0:02:30.4]} 19. Qh5+ {[%clk 0:01:48]} 19...
Kg8 {[%clk 0:02:30.1]} 20. Qxe5 {[%clk 0:01:48.5]} 20... Bxd4 {[%clk 0:01:55.9]}
21. Bxd4 {[%clk 0:01:44.7]} 21... f6 {[%clk 0:01:55.5]} 22. Qg3 {[%clk
0:01:41.2]} 22... e5 {[%clk 0:01:52.8]} 23. Bb6 {[%clk 0:01:37.2]} 23... Rxc1
{[%clk 0:01:47]} 24. Rxc1 {[%clk 0:01:37.7]} 24... Rc8 {[%clk 0:01:46.7]} 25.
Rxc8+ {[%clk 0:01:25.2]} 25... Bxc8 {[%clk 0:01:47.6]} 26. Qf3 {[%clk
0:01:25.3]} 26... Bb7 {[%clk 0:01:44.8]} 27. Qd1 {[%clk 0:01:20.6]} 27... Qe6
{[%clk 0:01:37.1]} 28. Bc5 {[%clk 0:01:08.1]} 28... Qc6 {[%clk 0:01:33.6]} 29.
Qd8+ {[%clk 0:00:43.1]} 29... Kh7 {[%clk 0:01:20.1]} 30. Qd3+ {[%clk 0:00:37.5]}
30... Kh6 {[%clk 0:00:49.6]} 31. e4 {[%clk 0:00:25.5]} 31... Qxc5 {[%clk
0:00:45.9]} 32. Qh3+ {[%clk 0:00:21]} 32... Kg6 {[%clk 0:00:43.3]} 33. Qf5+
{[%clk 0:00:21.2]} 33... Kf7 {[%clk 0:00:39.9]} 34. Qd7+ {[%clk 0:00:21.9]}
34... Qe7 {[%clk 0:00:37.4]} 35. Qd3 {[%clk 0:00:21.9]} 35... Qc7 {[%clk
0:00:33.9]} 36. f3 {[%clk 0:00:18.7]} 36... Qc5+ {[%clk 0:00:28.6]} 37. Kf1
{[%clk 0:00:18.2]} 37... Bc6 {[%clk 0:00:25.1]} 38. Qd8 {[%clk 0:00:15.1]} 38...
b4 {[%clk 0:00:19.2]} 39. g3 {[%clk 0:00:13.4]} 39... Kg6 {[%clk 0:00:14.8]} 40.
Kg2 {[%clk 0:00:07.9]} 40... Bb5 {[%clk 0:00:12.2]} 41. Qd2 {[%clk 0:00:02.4]}
41... Qd4 {[%clk 0:00:09.1]} 42. Qc1 {[%clk 0:00:01.5]} 42... Qd3 {[%clk
0:00:07.2]} 43. h4 {[%clk 0:00:01.9]} 43... Qe2+ {[%clk 0:00:07.3]} 44. Kh3
{[%clk 0:00:02.4]} 44... Qxf3 {[%clk 0:00:06.6]} 45. Qe1 {[%clk 0:00:03]} 45...
Bf1+ {[%clk 0:00:05.8]} 46. Kh2 {[%clk 0:00:03]} 46... Qg2# {[%clk 0:00:05.9]}
0-1

[Event "Late-Titled-Tuesday-Blitz-May-28-2024"]
[Site "Chess.com"]
[Date "2024.05.28"]
[Round "3"]
[White "aval7an"]
[Black "penguingm1"]
[Result "1-0"]
[WhiteElo "2689"]
[BlackElo "2944"]
[TimeControl "180+1"]
[EndTime "14:29:18 PDT"]
[Termination "aval7an won by checkmate"]

1. d4 {[%clk 0:03:00.9]} 1... d5 {[%clk 0:02:56.4]} 2. c4 {[%clk 0:02:59.2]}
2... e6 {[%clk 0:02:48.2]} 3. Nc3 {[%clk 0:02:58.5]} 3... Be7 {[%clk 0:02:47.4]}
4. cxd5 {[%clk 0:02:58]} 4... exd5 {[%clk 0:02:48.3]} 5. Bf4 {[%clk 0:02:57.9]}
5... c6 {[%clk 0:02:48.9]} 6. Qc2 {[%clk 0:02:56.6]} 6... Nf6 {[%clk 0:02:44.3]}
7. e3 {[%clk 0:02:56.3]} 7... Nh5 {[%clk 0:02:44.5]} 8. Be5 {[%clk 0:02:46.8]}
8... Nd7 {[%clk 0:02:44.3]} 9. Nf3 {[%clk 0:02:43.8]} 9... Nxe5 {[%clk
0:01:55.8]} 10. Nxe5 {[%clk 0:02:44.7]} 10... Bd6 {[%clk 0:01:54.5]} 11. Bd3
{[%clk 0:02:07.9]} 11... Bxe5 {[%clk 0:01:24.7]} 12. dxe5 {[%clk 0:02:08.5]}
12... Qe7 {[%clk 0:01:24]} 13. f4 {[%clk 0:01:50.1]} 13... d4 {[%clk 0:01:20.6]}
14. Ne4 {[%clk 0:01:39.4]} 14... dxe3 {[%clk 0:01:15]} 15. Nd6+ {[%clk
0:01:32.7]} 15... Kf8 {[%clk 0:01:14.6]} 16. O-O {[%clk 0:01:33.2]} 16... g6
{[%clk 0:01:02.9]} 17. Rae1 {[%clk 0:01:27.2]} 17... Be6 {[%clk 0:00:49.3]} 18.
Rxe3 {[%clk 0:01:24.2]} 18... f5 {[%clk 0:00:44.1]} 19. Bc4 {[%clk 0:00:56.7]}
19... Ng7 {[%clk 0:00:41.9]} 20. Rd1 {[%clk 0:00:54.2]} 20... Rd8 {[%clk
0:00:41.3]} 21. Red3 {[%clk 0:00:52.5]} 21... Bxc4 {[%clk 0:00:26.4]} 22. Qxc4
{[%clk 0:00:53.4]} 22... Rd7 {[%clk 0:00:13.9]} 23. Nc8 {[%clk 0:00:39.7]} 23...
Rxd3 {[%clk 0:00:13.6]} 24. Rxd3 {[%clk 0:00:40.5]} 24... Qc7 {[%clk 0:00:11]}
25. Qc5+ {[%clk 0:00:29.7]} 25... Kg8 {[%clk 0:00:08.1]} 26. Qd6 {[%clk
0:00:09.5]} 26... Qxc8 {[%clk 0:00:03.2]} 27. Qd8+ {[%clk 0:00:09]} 27... Qxd8
{[%clk 0:00:03.7]} 28. Rxd8+ {[%clk 0:00:09.5]} 28... Ne8 {[%clk 0:00:04.5]} 29.
Rxe8+ {[%clk 0:00:09]} 29... Kg7 {[%clk 0:00:05.1]} 30. Re7+ {[%clk 0:00:08.9]}
30... Kh6 {[%clk 0:00:05.8]} 31. Rxb7 {[%clk 0:00:09.2]} 31... Rd8 {[%clk
0:00:06.5]} 32. Kf2 {[%clk 0:00:05.5]} 32... Rd2+ {[%clk 0:00:05.4]} 33. Kf3
{[%clk 0:00:05.8]} 33... a5 {[%clk 0:00:05.4]} 34. e6 {[%clk 0:00:04.9]} 34...
Rd3+ {[%clk 0:00:04.6]} 35. Ke2 {[%clk 0:00:05.4]} 35... Rd4 {[%clk 0:00:05.2]}
36. e7 {[%clk 0:00:03.7]} 36... Re4+ {[%clk 0:00:05.1]} 37. Kf3 {[%clk
0:00:04.2]} 37... a4 {[%clk 0:00:04.3]} 38. g4 {[%clk 0:00:04.6]} 38... Re1
{[%clk 0:00:03.3]} 39. g5+ {[%clk 0:00:04.7]} 39... Kh5 {[%clk 0:00:04]} 40.
e8=Q {[%clk 0:00:04.9]} 40... Rxe8 {[%clk 0:00:03]} 41. Rxh7# {[%clk 0:00:05.3]}
1-0

[Event "Late-Titled-Tuesday-Blitz-May-28-2024"]
[Site "Chess.com"]
[Date "2024.05.28"]
[Round "3"]
[White "MaiqMaster"]
[Black "ozates"]
[Result "0-1"]
[WhiteElo "2453"]
[BlackElo "2626"]
[TimeControl "180+1"]
[EndTime "14:29:18 PDT"]
[Termination "ozates won by checkmate"]

1. e4 {[%clk 0:03:00.9]} 1... e5 {[%clk 0:02:59.5]} 2. Nf3 {[%clk 0:02:58.5]}
2... Nc6 {[%clk 0:02:59.8]} 3. Bb5 {[%clk 0:02:58.4]} 3... g6 {[%clk 0:02:57.5]}
4. c3 {[%clk 0:02:47.6]} 4... Bg7 {[%clk 0:02:57.4]} 5. O-O {[%clk 0:02:46.8]}
5... Nge7 {[%clk 0:02:56.6]} 6. d4 {[%clk 0:02:46.5]} 6... exd4 {[%clk
0:02:57.5]} 7. cxd4 {[%clk 0:02:46.9]} 7... a6 {[%clk 0:02:58.3]} 8. Ba4 {[%clk
0:02:41.3]} 8... b5 {[%clk 0:02:57.4]} 9. Bb3 {[%clk 0:02:40.7]} 9... O-O {[%clk
0:02:56.1]} 10. Be3 {[%clk 0:02:38]} 10... Na5 {[%clk 0:02:54.9]} 11. Nc3 {[%clk
0:02:33.8]} 11... d6 {[%clk 0:02:47.1]} 12. Bc2 {[%clk 0:02:31.9]} 12... Bg4
{[%clk 0:02:43.1]} 13. h3 {[%clk 0:02:29.7]} 13... Bxf3 {[%clk 0:02:42.2]} 14.
Qxf3 {[%clk 0:02:30.6]} 14... Nc4 {[%clk 0:02:38.4]} 15. b3 {[%clk 0:02:23.8]}
15... Nxe3 {[%clk 0:02:34.8]} 16. Qxe3 {[%clk 0:02:22.9]} 16... c5 {[%clk
0:02:30.2]} 17. dxc5 {[%clk 0:02:12.4]} 17... dxc5 {[%clk 0:02:28.7]} 18. Rad1
{[%clk 0:02:11.5]} 18... Qa5 {[%clk 0:02:20.1]} 19. Nd5 {[%clk 0:02:07.9]} 19...
Nxd5 {[%clk 0:02:19.8]} 20. exd5 {[%clk 0:01:57.6]} 20... Qxa2 {[%clk
0:02:19.2]} 21. Bb1 {[%clk 0:01:45.4]} 21... Qb2 {[%clk 0:01:43.9]} 22. Rd2
{[%clk 0:01:36.5]} 22... Qc3 {[%clk 0:01:37.5]} 23. Rd3 {[%clk 0:01:25.2]} 23...
Qb4 {[%clk 0:01:35.2]} 24. Rc1 {[%clk 0:01:20.4]} 24... Bd4 {[%clk 0:01:33.5]}
25. Qf3 {[%clk 0:01:20]} 25... Rfd8 {[%clk 0:01:25.8]} 26. d6 {[%clk 0:01:15.7]}
26... Rac8 {[%clk 0:01:20.3]} 27. Qf4 {[%clk 0:01:12.2]} 27... Qa5 {[%clk
0:01:06.2]} 28. Rf3 {[%clk 0:01:09.2]} 28... Rd7 {[%clk 0:01:06]} 29. Bf5 {[%clk
0:01:03.6]} 29... gxf5 {[%clk 0:00:56.9]} 30. Rg3+ {[%clk 0:01:01.4]} 30... Kh8
{[%clk 0:00:46.9]} 31. Rxc5 {[%clk 0:00:43.6]} 31... Qa1+ {[%clk 0:00:31.7]} 32.
Kh2 {[%clk 0:00:40.3]} 32... Bxc5 {[%clk 0:00:31.6]} 33. Qxf5 {[%clk 0:00:35.8]}
33... Bxd6 {[%clk 0:00:26.3]} 34. f4 {[%clk 0:00:30.4]} 34... Rc1 {[%clk
0:00:16.7]} 35. Rg4 {[%clk 0:00:18.1]} 35... Rh1+ {[%clk 0:00:16.6]} 36. Kg3
{[%clk 0:00:18.1]} 36... Qc3+ {[%clk 0:00:15.9]} 37. Kh4 {[%clk 0:00:18]} 37...
Rd8 {[%clk 0:00:09.3]} 38. Qxf7 {[%clk 0:00:13.3]} 38... Qe1+ {[%clk 0:00:09.2]}
39. Kh5 {[%clk 0:00:12.3]} 39... Qe7 {[%clk 0:00:07.5]} 40. Qf5 {[%clk 0:00:09]}
40... Re1 {[%clk 0:00:06.2]} 41. Rg5 {[%clk 0:00:07.6]} 41... Re6 {[%clk
0:00:06.4]} 42. Kg4 {[%clk 0:00:06.5]} 42... Rf6 {[%clk 0:00:06.6]} 43. Qd3
{[%clk 0:00:03.7]} 43... Rxf4+ {[%clk 0:00:07.5]} 44. Kh5 {[%clk 0:00:03.1]}
44... Qf7+ {[%clk 0:00:05.2]} 45. Kh6 {[%clk 0:00:03.3]} 45... Rh4+ {[%clk
0:00:03.7]} 46. Rh5 {[%clk 0:00:03.4]} 46... Rxh5# {[%clk 0:00:03.8]} 0-1

[Event "Late-Titled-Tuesday-Blitz-May-28-2024"]
[Site "Chess.com"]
[Date "2024.05.28"]
[Round "3"]
[White "sergiochess83"]
[Black "Sanyura"]
[Result "1/2-1/2"]
[WhiteElo "2881"]
[BlackElo "2627"]
[TimeControl "180+1"]
[EndTime "14:29:19 PDT"]
[Termination "Game drawn by repetition"]

1. d4 {[%clk 0:02:57]} 1... d5 {[%clk 0:02:59.1]} 2. c4 {[%clk 0:02:56.4]} 2...
dxc4 {[%clk 0:02:59.2]} 3. Nf3 {[%clk 0:02:54.4]} 3... e6 {[%clk 0:02:51.5]} 4.
e3 {[%clk 0:02:54.2]} 4... c5 {[%clk 0:02:51.2]} 5. Bxc4 {[%clk 0:02:54.1]} 5...
cxd4 {[%clk 0:02:51.2]} 6. exd4 {[%clk 0:02:53.7]} 6... Bd6 {[%clk 0:02:51.7]}
7. O-O {[%clk 0:02:53.4]} 7... Ne7 {[%clk 0:02:52]} 8. Nc3 {[%clk 0:02:53.6]}
8... h6 {[%clk 0:02:51.3]} 9. Re1 {[%clk 0:02:52.7]} 9... O-O {[%clk 0:02:47.3]}
10. Qe2 {[%clk 0:02:14.5]} 10... Nf5 {[%clk 0:02:08.8]} 11. Qe4 {[%clk
0:01:51.3]} 11... Bd7 {[%clk 0:01:59.6]} 12. Ne5 {[%clk 0:01:29.7]} 12... Nc6
{[%clk 0:01:04.2]} 13. Nxd7 {[%clk 0:01:05.9]} 13... Qxd7 {[%clk 0:01:03.9]} 14.
d5 {[%clk 0:01:06.5]} 14... exd5 {[%clk 0:01:00.8]} 15. Qxd5 {[%clk 0:01:07.4]}
15... Rfe8 {[%clk 0:00:46.7]} 16. Bf4 {[%clk 0:01:02.5]} 16... Nb4 {[%clk
0:00:36.7]} 17. Qd2 {[%clk 0:00:54.3]} 17... Qc7 {[%clk 0:00:30.2]} 18. Bxd6
{[%clk 0:00:48.2]} 18... Qxd6 {[%clk 0:00:29.3]} 19. Qxd6 {[%clk 0:00:34.9]}
19... Nxd6 {[%clk 0:00:30.2]} 20. Bf1 {[%clk 0:00:34.9]} 20... a6 {[%clk
0:00:15]} 21. Rxe8+ {[%clk 0:00:34.1]} 21... Rxe8 {[%clk 0:00:14.7]} 22. Rd1
{[%clk 0:00:35]} 22... Ne4 {[%clk 0:00:12.9]} 23. Nxe4 {[%clk 0:00:29.7]} 23...
Rxe4 {[%clk 0:00:12.7]} 24. Rd8+ {[%clk 0:00:15.5]} 24... Kh7 {[%clk 0:00:12.3]}
25. a3 {[%clk 0:00:15]} 25... Nc6 {[%clk 0:00:10.9]} 26. Bd3 {[%clk 0:00:08.7]}
26... Nxd8 {[%clk 0:00:10.5]} 27. Bxe4+ {[%clk 0:00:09.1]} 27... g6 {[%clk
0:00:09.3]} 28. f4 {[%clk 0:00:09.2]} 28... Kg7 {[%clk 0:00:08.7]} 29. Kf2
{[%clk 0:00:09.6]} 29... Kf6 {[%clk 0:00:09]} 30. Ke3 {[%clk 0:00:10.1]} 30...
Ke6 {[%clk 0:00:09.5]} 31. Kd4 {[%clk 0:00:09.3]} 31... Kd6 {[%clk 0:00:10]} 32.
Bd5 {[%clk 0:00:04.6]} 32... b6 {[%clk 0:00:07.6]} 33. h4 {[%clk 0:00:03.3]}
33... Ne6+ {[%clk 0:00:05.8]} 34. Bxe6 {[%clk 0:00:02.5]} 34... Kxe6 {[%clk
0:00:06.7]} 35. g4 {[%clk 0:00:02]} 35... h5 {[%clk 0:00:03.3]} 36. gxh5 {[%clk
0:00:02.3]} 36... gxh5 {[%clk 0:00:03.7]} 37. Ke4 {[%clk 0:00:03.2]} 37... f5+
{[%clk 0:00:01.9]} 38. Kd4 {[%clk 0:00:03.5]} 38... Kd6 {[%clk 0:00:02.5]} 39.
b4 {[%clk 0:00:04]} 39... b5 {[%clk 0:00:02.8]} 40. Kc3 {[%clk 0:00:03.4]} 40...
Kc6 {[%clk 0:00:02.4]} 41. Kd2 {[%clk 0:00:02.8]} 41... Kd6 {[%clk 0:00:02.1]}
42. Ke3 {[%clk 0:00:03.2]} 42... Ke6 {[%clk 0:00:02.3]} 43. Kd4 {[%clk
0:00:03.1]} 43... Kd6 {[%clk 0:00:02.7]} 44. Kc3 {[%clk 0:00:03.8]} 44... Kc6
{[%clk 0:00:03.2]} 45. Kd4 {[%clk 0:00:04]} 45... Kd6 {[%clk 0:00:03.7]} 1/2-1/2

[Event "Late-Titled-Tuesday-Blitz-May-28-2024"]
[Site "Chess.com"]
[Date "2024.05.28"]
[Round "3"]
[White "GothamChess"]
[Black "swayamsm"]
[Result "1-0"]
[WhiteElo "2810"]
[BlackElo "2549"]
[TimeControl "180+1"]
[EndTime "14:29:19 PDT"]
[Termination "GothamChess won by checkmate"]

1. e4 {[%clk 0:02:59.9]} 1... e5 {[%clk 0:02:53.4]} 2. Nf3 {[%clk 0:02:59]} 2...
Nc6 {[%clk 0:02:53.7]} 3. c3 {[%clk 0:02:58.9]} 3... Nf6 {[%clk 0:02:44]} 4. d4
{[%clk 0:02:56.6]} 4... d6 {[%clk 0:02:43.6]} 5. h3 {[%clk 0:02:56.3]} 5... g6
{[%clk 0:02:33.1]} 6. Bd3 {[%clk 0:02:55.6]} 6... Bg7 {[%clk 0:02:32.8]} 7. d5
{[%clk 0:02:56.1]} 7... Ne7 {[%clk 0:02:32.2]} 8. c4 {[%clk 0:02:56.2]} 8... O-O
{[%clk 0:02:31.8]} 9. Nc3 {[%clk 0:02:56.3]} 9... h6 {[%clk 0:02:30.7]} 10. g4
{[%clk 0:02:54.7]} 10... h5 {[%clk 0:02:27.7]} 11. Bg5 {[%clk 0:02:50.3]} 11...
hxg4 {[%clk 0:02:19.5]} 12. hxg4 {[%clk 0:02:51.2]} 12... Bxg4 {[%clk
0:02:19.5]} 13. Be2 {[%clk 0:02:43.2]} 13... Nh5 {[%clk 0:02:05.8]} 14. Qd2
{[%clk 0:02:35.7]} 14... f6 {[%clk 0:02:02.5]} 15. Bh6 {[%clk 0:02:16.7]} 15...
Rf7 {[%clk 0:02:02.5]} 16. Rh4 {[%clk 0:02:04.2]} 16... Bxh6 {[%clk 0:01:55.5]}
17. Qxh6 {[%clk 0:02:03.4]} 17... Rh7 {[%clk 0:01:55.9]} 18. Qd2 {[%clk
0:02:00.3]} 18... Bxf3 {[%clk 0:01:50.6]} 19. Bxf3 {[%clk 0:01:59.7]} 19... Nf4
{[%clk 0:01:50.5]} 20. Rxh7 {[%clk 0:01:56.8]} 20... Kxh7 {[%clk 0:01:51.4]} 21.
Ne2 {[%clk 0:01:52]} 21... Nxe2 {[%clk 0:01:33.5]} 22. Kxe2 {[%clk 0:01:48.4]}
22... Kg7 {[%clk 0:01:34]} 23. Rh1 {[%clk 0:01:46.2]} 23... g5 {[%clk
0:01:33.9]} 24. Bg4 {[%clk 0:01:39.9]} 24... Ng6 {[%clk 0:01:33.7]} 25. Qe3
{[%clk 0:01:30.9]} 25... Qe7 {[%clk 0:01:15.8]} 26. Kd2 {[%clk 0:01:27.6]} 26...
a5 {[%clk 0:01:00.7]} 27. Rh5 {[%clk 0:01:18.6]} 27... Nf4 {[%clk 0:00:55.9]}
28. Rh2 {[%clk 0:01:13.7]} 28... b6 {[%clk 0:00:55.6]} 29. Bf5 {[%clk 0:01:12]}
29... Rh8 {[%clk 0:00:55.9]} 30. Rxh8 {[%clk 0:00:58.4]} 30... Kxh8 {[%clk
0:00:56.8]} 31. Qb3 {[%clk 0:00:58.7]} 31... Qe8 {[%clk 0:00:55.5]} 32. Bg4
{[%clk 0:00:49.2]} 32... Kg7 {[%clk 0:00:53.6]} 33. a3 {[%clk 0:00:39.3]} 33...
Kf8 {[%clk 0:00:45.8]} 34. f3 {[%clk 0:00:37.2]} 34... Ke7 {[%clk 0:00:44.8]}
35. Kc2 {[%clk 0:00:34.4]} 35... Ne2 {[%clk 0:00:38.2]} 36. Qe3 {[%clk
0:00:27.9]} 36... Qa4+ {[%clk 0:00:33.5]} 37. b3 {[%clk 0:00:25.2]} 37... Nd4+
{[%clk 0:00:28.7]} 38. Qxd4 {[%clk 0:00:24.2]} 38... Qxa3 {[%clk 0:00:24.3]} 39.
Qc3 {[%clk 0:00:21.5]} 39... Qc5 {[%clk 0:00:24.6]} 40. Kb2 {[%clk 0:00:18.2]}
40... Qf2+ {[%clk 0:00:23.9]} 41. Qc2 {[%clk 0:00:18.5]} 41... Qd4+ {[%clk
0:00:22.6]} 42. Ka2 {[%clk 0:00:18.6]} 42... Kf8 {[%clk 0:00:19.5]} 43. Qh2
{[%clk 0:00:17.3]} 43... a4 {[%clk 0:00:17.9]} 44. Qh8+ {[%clk 0:00:15.2]} 44...
Ke7 {[%clk 0:00:17]} 45. Qg7+ {[%clk 0:00:15.5]} 45... Ke8 {[%clk 0:00:17.6]}
46. Qd7+ {[%clk 0:00:09.7]} 46... Kf8 {[%clk 0:00:17.6]} 47. Qd8+ {[%clk
0:00:09.5]} 47... Kg7 {[%clk 0:00:15.9]} 48. Qe7+ {[%clk 0:00:09.1]} 48... Kg6
{[%clk 0:00:09]} 49. Bf5+ {[%clk 0:00:08.7]} 49... Kh5 {[%clk 0:00:09.7]} 50.
Qh7# {[%clk 0:00:09.4]} 1-0

[Event "Late-Titled-Tuesday-Blitz-May-28-2024"]
[Site "Chess.com"]
[Date "2024.05.28"]
[Round "3"]
[White "Nathan_Filgueiras"]
[Black "kinga2008"]
[Result "0-1"]
[WhiteElo "2560"]
[BlackElo "2425"]
[TimeControl "180+1"]
[EndTime "14:29:19 PDT"]
[Termination "kinga2008 won by resignation"]

1. e4 {[%clk 0:03:00.9]} 1... c5 {[%clk 0:02:52.1]} 2. Nf3 {[%clk 0:03:01]} 2...
Nc6 {[%clk 0:02:49]} 3. d4 {[%clk 0:03:01.2]} 3... cxd4 {[%clk 0:02:49.9]} 4.
Nxd4 {[%clk 0:03:01.8]} 4... e5 {[%clk 0:02:50]} 5. Nb5 {[%clk 0:03:01.5]} 5...
a6 {[%clk 0:02:49.3]} 6. Nd6+ {[%clk 0:03:01.1]} 6... Bxd6 {[%clk 0:02:49.8]} 7.
Qxd6 {[%clk 0:03:02]} 7... Qf6 {[%clk 0:02:50.4]} 8. Qxf6 {[%clk 0:02:59.7]}
8... Nxf6 {[%clk 0:02:50.1]} 9. Nc3 {[%clk 0:03:00.3]} 9... Nb4 {[%clk
0:02:49.4]} 10. Bd3 {[%clk 0:03:00.2]} 10... d5 {[%clk 0:02:47.4]} 11. exd5
{[%clk 0:03:00]} 11... Nfxd5 {[%clk 0:02:46]} 12. Nxd5 {[%clk 0:02:59.6]} 12...
Nxd5 {[%clk 0:02:46.9]} 13. Bd2 {[%clk 0:02:59.4]} 13... Be6 {[%clk 0:02:46.2]}
14. O-O-O {[%clk 0:02:59.4]} 14... O-O-O {[%clk 0:02:45.2]} 15. Rhe1 {[%clk
0:02:59.9]} 15... f6 {[%clk 0:02:37]} 16. f4 {[%clk 0:02:56.7]} 16... Bg4 {[%clk
0:02:24.7]} 17. fxe5 {[%clk 0:02:31.4]} 17... Bxd1 {[%clk 0:02:23.6]} 18. Kxd1
{[%clk 0:02:31.9]} 18... Rhe8 {[%clk 0:02:19.2]} 19. Ba5 {[%clk 0:02:05.2]}
19... Rd7 {[%clk 0:01:50.6]} 20. exf6 {[%clk 0:01:38]} 20... Nxf6 {[%clk
0:01:49.8]} 21. Bc3 {[%clk 0:01:19]} 21... Rxe1+ {[%clk 0:01:41.7]} 22. Kxe1
{[%clk 0:01:19.9]} 22... Re7+ {[%clk 0:01:40.9]} 23. Kf2 {[%clk 0:01:17]} 23...
g6 {[%clk 0:01:24.6]} 24. Kf3 {[%clk 0:01:06.6]} 24... Nd5 {[%clk 0:01:15.1]}
25. Bd2 {[%clk 0:01:06.6]} 25... Rf7+ {[%clk 0:01:13.6]} 26. Ke4 {[%clk
0:01:02.6]} 26... Nf6+ {[%clk 0:01:13]} 27. Kd4 {[%clk 0:00:56.3]} 27... Ng4
{[%clk 0:01:12.7]} 28. h3 {[%clk 0:00:50.7]} 28... Rd7+ {[%clk 0:01:12.9]} 29.
Kc3 {[%clk 0:00:46.5]} 29... Nf2 {[%clk 0:01:09.8]} 30. Bf4 {[%clk 0:00:42]}
30... b5 {[%clk 0:01:00.1]} 31. a3 {[%clk 0:00:41.6]} 31... Kb7 {[%clk
0:00:54.2]} 32. Be2 {[%clk 0:00:31.1]} 32... Ne4+ {[%clk 0:00:46.9]} 33. Kb4
{[%clk 0:00:31]} 33... Nd2 {[%clk 0:00:33.2]} 34. Kc3 {[%clk 0:00:27.1]} 34...
Ne4+ {[%clk 0:00:26.5]} 35. Kb4 {[%clk 0:00:27.1]} 35... Rd4+ {[%clk 0:00:24.6]}
36. Kb3 {[%clk 0:00:24.9]} 36... Nc5+ {[%clk 0:00:23.8]} 37. Kc3 {[%clk
0:00:20.2]} 37... Rxf4 {[%clk 0:00:24.7]} 38. Bf3+ {[%clk 0:00:20.7]} 38... Kb6
{[%clk 0:00:24.2]} 39. Kd2 {[%clk 0:00:20.4]} 39... Ne6 {[%clk 0:00:22.6]} 40.
Ke3 {[%clk 0:00:20.7]} 40... Rf8 {[%clk 0:00:18.2]} 41. c3 {[%clk 0:00:20.7]}
41... Nd8 {[%clk 0:00:17]} 42. Ke4 {[%clk 0:00:21.1]} 42... Nb7 {[%clk
0:00:17.9]} 43. Kd5 {[%clk 0:00:21.2]} 43... Rf6 {[%clk 0:00:17]} 44. Ke5 {[%clk
0:00:21.3]} 44... Rf8 {[%clk 0:00:15]} 45. Ke6 {[%clk 0:00:20.9]} 45... Nc5+
{[%clk 0:00:15.6]} 46. Ke7 {[%clk 0:00:21.4]} 46... Rf4 {[%clk 0:00:16.2]} 47.
Kd6 {[%clk 0:00:20.8]} 47... Nd3 {[%clk 0:00:16.5]} 48. b4 {[%clk 0:00:20.4]}
48... Ne1 {[%clk 0:00:17.1]} 49. Bd5 {[%clk 0:00:20.3]} 49... Rf2 {[%clk
0:00:17.1]} 50. c4 {[%clk 0:00:20.7]} 50... bxc4 {[%clk 0:00:17.7]} 51. Bxc4
{[%clk 0:00:20.6]} 51... Nxg2 {[%clk 0:00:18.1]} 52. a4 {[%clk 0:00:21.2]} 52...
Ne3 {[%clk 0:00:17.9]} 53. a5+ {[%clk 0:00:21.7]} 53... Ka7 {[%clk 0:00:18.3]}
54. Be6 {[%clk 0:00:21.8]} 54... Rd2+ {[%clk 0:00:18.5]} 55. Kc5 {[%clk
0:00:22.2]} 55... Rc2+ {[%clk 0:00:18.6]} 56. Kd6 {[%clk 0:00:22.7]} 56... Nc4+
{[%clk 0:00:18]} 57. Kc5 {[%clk 0:00:21.9]} 57... Nxa5+ {[%clk 0:00:18.1]} 58.
Kd6 {[%clk 0:00:21.7]} 58... Rc6+ {[%clk 0:00:17.8]} 59. Ke7 {[%clk 0:00:21.8]}
59... Rxe6+ {[%clk 0:00:18.7]} 60. Kxe6 {[%clk 0:00:22.7]} 60... Nc6 {[%clk
0:00:19.6]} 0-1